fUSD/lending_fUSD_20250608
["ID","MTS","AMOUNT","RATE_DAILY","PERIOD"]
[365045777,1749425447717,-727.51,0.00019014,2]
[365045778,1749425447726,-663.6,0.00019014,2]
[365045779,1749425447737,-150.0,0.00019015,2]
[365045780,1749425447746,-480.0,0.00019024,2]
[365045781,1749425447755,-480.0,0.00019024,2]
[365045782,1749425447765,-8371.67514523,0.00019024,2]
[365045783,1749425447775,-480.0,0.00019025,2]
[365045784,1749425447784,-480.0,0.00019025,2]
[365045785,1749425447795,-480.0,0.00019025,2]
[365045786,1749425447804,-480.0,0.00019025,2]
[365045787,1749425447813,-480.0,0.00019025,2]
[365045788,1749425447822,-480.0,0.00019025,2]
[365045789,1749425447832,-480.0,0.00019025,2]
[365045790,1749425447841,-600.24412204,0.00019025,2]
[365045791,1749425447851,-480.0,0.00019025,2]
[365045792,1749425447860,-480.0,0.00019025,2]
[365045793,1749425447869,-360.0,0.00019025,2]
[365045794,1749425447879,-480.0,0.00019025,2]
[365045795,1749425447889,-480.0,0.00019025,2]
[365045796,1749425447898,-480.0,0.00019025,2]
[365045797,1749425447907,-480.0,0.00019025,2]
[365045798,1749425447917,-480.0,0.00019025,2]
[365045799,1749425447926,-480.0,0.00019025,2]
[365045800,1749425447936,-360.0,0.00019025,2]
[365045801,1749425447945,-364.31397074,0.00019025,2]
[365045802,1749425447955,-368.0642297,0.00019025,2]
[365045803,1749425447965,-480.0,0.00019025,2]
[365045804,1749425447975,-361.144013,0.00019025,2]
[365045805,1749425447984,-480.0,0.00019025,2]
[365045806,1749425447993,-480.0,0.00019025,2]
[365045807,1749425448003,-182.52051052,0.00019025,2]
[365045808,1749425448012,-480.0,0.00019025,2]
[365045809,1749425448022,-480.0,0.00019025,2]
[365045810,1749425448031,-480.0,0.00019025,2]
[365045811,1749425448041,-480.0,0.00019025,2]
[365045812,1749425448050,-598.52,0.00019025,2]
[365045813,1749425448060,-480.0,0.00019025,2]
[365045814,1749425448069,-480.0,0.00019025,2]
[365045815,1749425448079,-480.0,0.00019025,2]
[365045816,1749425448089,-480.0,0.00019025,2]
[365045817,1749425448098,-480.0,0.00019025,2]
[365045818,1749425448108,-480.0,0.00019025,2]
[365045819,1749425448117,-480.0,0.00019025,2]
[365045820,1749425448127,-480.0,0.00019025,2]
[365045821,1749425448137,-480.0,0.00019025,2]
[365045822,1749425448146,-480.0,0.00019025,2]
[365045823,1749425448155,-480.0,0.00019025,2]
[365045824,1749425448165,-480.0,0.00019025,2]
[365045825,1749425448174,-480.0,0.00019025,2]
[365045826,1749425448183,-823.4,0.00019025,2]
[365045827,1749425448193,-150.0,0.00019025,2]
[365045828,1749425448202,-480.0,0.00019025,2]
[365045829,1749425448211,-480.0,0.00019025,2]
[365045830,1749425448221,-480.0,0.00019025,2]
[365045831,1749425448231,-480.0,0.00019025,2]
[365045832,1749425448240,-912.18,0.00019025,2]
[365045833,1749425448249,-480.0,0.00019025,2]
[365045834,1749425448259,-480.0,0.00019025,2]
[365045835,1749425448268,-772.25,0.00019025,2]
[365045836,1749425448277,-480.0,0.00019025,2]
[365045837,1749425448286,-480.0,0.00019025,2]
[365045838,1749425448296,-480.0,0.00019025,2]
[365045839,1749425448306,-549.28,0.00019025,2]
[365045840,1749425448315,-480.0,0.00019025,2]
[365045841,1749425448325,-480.0,0.00019025,2]
[365045842,1749425448335,-480.0,0.00019025,2]
[365045843,1749425448345,-480.0,0.00019025,2]
[365045844,1749425448354,-480.0,0.00019025,2]
[365045845,1749425448363,-480.0,0.00019025,2]
[365045846,1749425448374,-480.0,0.00019025,2]
[365045847,1749425448384,-811.78,0.00019025,2]
[365045848,1749425448394,-1522.77,0.00019025,2]
[365045849,1749425448404,-500.0,0.00019025,2]
[365045850,1749425448414,-400.0,0.00019025,2]
[365045851,1749425448423,-633.17,0.00019025,2]
[365045852,1749425448433,-480.0,0.00019025,2]
[365045853,1749425448442,-595.66,0.00019025,2]
[365045854,1749425448452,-480.0,0.00019025,2]
[365045855,1749425448461,-496.53,0.00019025,2]
[365045856,1749425448471,-480.0,0.00019025,2]
[365045857,1749425448480,-480.0,0.00019025,2]
[365045858,1749425448490,-480.0,0.00019025,2]
[365045859,1749425448499,-480.0,0.00019025,2]
[365045860,1749425448509,-480.0,0.00019025,2]
[365045861,1749425448518,-480.0,0.00019025,2]
[365045862,1749425448528,-480.0,0.00019025,2]
[365045863,1749425448539,-480.0,0.00019025,2]
[365045864,1749425448550,-480.0,0.00019025,2]
[365045865,1749425448559,-480.0,0.00019025,2]
[365045866,1749425448569,-331.42362816,0.00019025,2]
[365045867,1749425448579,-480.0,0.00019025,2]
[365045868,1749425448589,-480.0,0.00019025,2]
[365045869,1749425448599,-480.0,0.00019025,2]
[365045870,1749425448609,-480.0,0.00019025,2]
[365045871,1749425448619,-480.0,0.00019025,2]
[365045872,1749425448633,-480.0,0.00019025,2]
[365045873,1749425448643,-480.0,0.00019025,2]
[365045874,1749425448653,-480.0,0.00019025,2]
[365045875,1749425448665,-480.0,0.00019025,2]
[365045876,1749425448674,-287.44388088,0.00019025,2]
[365045877,1749425448684,-480.0,0.00019025,2]
[365045878,1749425448699,-480.0,0.00019025,2]
[365045879,1749425448709,-722.96,0.00019025,2]
[365045880,1749425448719,-480.0,0.00019025,2]
[365045881,1749425448729,-480.0,0.00019025,2]
[365045882,1749425448740,-293.84952391,0.00019025,2]
[365045883,1749425448750,-480.0,0.00019025,2]
[365045884,1749425448760,-480.0,0.00019025,2]
[365045885,1749425448771,-288.36345706,0.00019025,2]
[365045886,1749425448781,-480.0,0.00019025,2]
[365045887,1749425448791,-480.0,0.00019025,2]
[365045888,1749425448801,-480.0,0.00019025,2]
[365045889,1749425448810,-220.12346468,0.00019025,2]
[365045890,1749425448819,-480.0,0.00019025,2]
[365045891,1749425448830,-480.0,0.00019025,2]
[365045892,1749425448839,-480.0,0.00019025,2]
[365045893,1749425448849,-480.0,0.00019025,2]
[365045894,1749425448859,-480.0,0.00019025,2]
[365045895,1749425448868,-424.74814157,0.00019025,2]
[365045896,1749425448881,-480.0,0.00019025,2]
[365045897,1749425448890,-480.0,0.00019025,2]
[365045898,1749425448900,-286.8739306,0.00019025,2]
[365045899,1749425448909,-480.0,0.00019025,2]
[365045900,1749425448919,-480.0,0.00019025,2]
[365045901,1749425448928,-480.0,0.00019025,2]
[365045902,1749425448937,-480.0,0.00019025,2]
[365045903,1749425448947,-480.0,0.00019025,2]
[365045904,1749425448956,-480.0,0.00019025,2]
[365045905,1749425448966,-480.0,0.00019025,2]
[365045906,1749425448975,-186.70138411,0.00019025,2]
[365045907,1749425448985,-480.0,0.00019025,2]
[365045908,1749425448994,-315.61984798,0.00019025,2]
[365045909,1749425449004,-480.0,0.00019025,2]
[365045910,1749425449013,-480.0,0.00019025,2]
[365045911,1749425449023,-480.0,0.00019025,2]
[365045912,1749425449032,-305.64222256,0.00019025,2]
[365045913,1749425449042,-480.0,0.00019025,2]
[365045914,1749425449051,-480.0,0.00019025,2]
[365045915,1749425449061,-307.8758849,0.00019025,2]
[365045916,1749425449072,-480.0,0.00019025,2]
[365045917,1749425449081,-677.07,0.00019025,2]
[365045918,1749425449091,-671.69,0.00019025,2]
[365045919,1749425449100,-480.0,0.00019025,2]
[365045920,1749425449110,-216.701922,0.00019025,2]
[365045921,1749425449120,-216.701922,0.00019025,2]
[365045922,1749425449133,-726.95,0.00019025,2]
[365045923,1749425449144,-480.0,0.00019025,2]
[365045924,1749425449153,-3051.56,0.00019025,2]
[365045925,1749425449163,-480.0,0.00019025,2]
[365045926,1749425449174,-524.16,0.00019025,2]
[365045927,1749425449184,-480.0,0.00019025,2]
[365045928,1749425449194,-480.0,0.00019025,2]
[365045929,1749425449203,-486.42,0.00019025,2]
[365045930,1749425449213,-480.0,0.00019025,2]
[365045931,1749425449223,-480.0,0.00019025,2]
[365045932,1749425449232,-480.0,0.00019025,2]
[365045933,1749425449242,-480.0,0.00019025,2]
[365045934,1749425449253,-485.78513558,0.00019025,2]
[365045935,1749425449263,-480.0,0.00019025,2]
[365045936,1749425449273,-480.0,0.00019025,2]
[365045937,1749425449282,-480.0,0.00019025,2]
[365045938,1749425449292,-7615.28,0.00019025,2]
[365045939,1749425449302,-480.0,0.00019025,2]
[365045940,1749425449312,-480.0,0.00019025,2]
[365045941,1749425449322,-413.49849822,0.00019025,2]
[365045942,1749425449332,-480.0,0.00019025,2]
[365045943,1749425449342,-480.0,0.00019025,2]
[365045944,1749425449351,-480.0,0.00019025,2]
[365045945,1749425449360,-647.27,0.00019025,2]
[365045946,1749425449370,-301.82902943,0.00019025,2]
[365045947,1749425449381,-480.0,0.00019025,2]
[365045948,1749425449391,-480.0,0.00019025,2]
[365045949,1749425449401,-480.0,0.00019025,2]
[365045950,1749425449410,-480.0,0.00019025,2]
[365045951,1749425449420,-480.0,0.00019025,2]
[365045952,1749425449429,-999.15,0.00019025,2]
[365045953,1749425449438,-480.0,0.00019025,2]
[365045954,1749425449448,-701.71,0.00019025,2]
[365045955,1749425449457,-480.0,0.00019025,2]
[365045956,1749425449467,-480.0,0.00019025,2]
[365045957,1749425449476,-480.0,0.00019025,2]
[365045958,1749425449485,-366.65078054,0.00019025,2]
[365045959,1749425449495,-480.0,0.00019025,2]
[365045960,1749425449553,-480.0,0.00019025,2]
[365045961,1749425449563,-543.41053897,0.00019025,2]
[365045962,1749425449573,-280.0,0.00019025,2]
[365045963,1749425449583,-480.0,0.00019025,2]
[365045964,1749425449593,-480.0,0.00019025,2]
[365045965,1749425449602,-480.0,0.00019025,2]
[365045966,1749425449611,-480.0,0.00019025,2]
[365045967,1749425449621,-480.0,0.00019025,2]
[365045968,1749425449632,-480.0,0.00019025,2]
[365045969,1749425449642,-480.0,0.00019025,2]
[365045970,1749425449652,-480.0,0.00019025,2]
[365045971,1749425449661,-480.0,0.00019025,2]
[365045972,1749425449670,-2000.0,0.00019025,2]
[365045973,1749425449680,-542.42,0.00019025,2]
[365045974,1749425449693,-155.69921311,0.00019025,2]
[365045975,1749425449703,-480.0,0.00019025,2]
[365045976,1749425449712,-304.08,0.00019025,2]
[365045977,1749425449721,-480.0,0.00019025,2]
[365045978,1749425449731,-480.0,0.00019025,2]
[365045979,1749425449741,-480.0,0.00019025,2]
[365045980,1749425449751,-480.0,0.00019025,2]
[365045981,1749425449760,-480.0,0.00019025,2]
[365045982,1749425449770,-480.0,0.00019025,2]
[365045983,1749425449780,-480.0,0.00019025,2]
[365045984,1749425449789,-480.0,0.00019025,2]
[365045985,1749425449799,-480.0,0.00019025,2]
[365045986,1749425449809,-480.0,0.00019025,2]
[365045987,1749425449819,-480.0,0.00019025,2]
[365045988,1749425449828,-496.61,0.00019025,2]
[365045989,1749425449838,-480.0,0.00019025,2]
[365045990,1749425449847,-1766.62,0.00019025,2]
[365045991,1749425449857,-480.0,0.00019025,2]
[365045992,1749425449867,-480.0,0.00019025,2]
[365045993,1749425449878,-480.0,0.00019025,2]
[365045994,1749425449887,-480.0,0.00019025,2]
[365045995,1749425449897,-480.0,0.00019025,2]
[365045996,1749425449906,-492.06,0.00019025,2]
[365045997,1749425449917,-2396.23,0.00019025,2]
[365045998,1749425449926,-480.0,0.00019025,2]
[365045999,1749425449935,-561.9564646,0.00019025,2]
[365046000,1749425449944,-480.0,0.00019025,2]
[365046001,1749425449953,-480.0,0.00019025,2]
[365046002,1749425449963,-480.0,0.00019025,2]
[365046003,1749425449971,-480.0,0.00019025,2]
[365046004,1749425449981,-480.0,0.00019025,2]
[365046005,1749425449990,-2764.63,0.00019025,2]
[365046006,1749425449999,-480.0,0.00019025,2]
[365046007,1749425450009,-303.33398908,0.00019025,2]
[365046008,1749425450018,-3777.34,0.00019025,2]
[365046009,1749425450027,-480.0,0.00019025,2]
[365046010,1749425450037,-480.0,0.00019025,2]
[365046011,1749425450046,-480.0,0.00019025,2]
[365046012,1749425450055,-480.0,0.00019025,2]
[365046013,1749425450064,-480.0,0.00019025,2]
[365046014,1749425450074,-480.0,0.00019025,2]
[365046015,1749425450083,-480.0,0.00019025,2]
[365046016,1749425450092,-480.0,0.00019025,2]
[365046017,1749425450102,-480.0,0.00019025,2]
[365046018,1749425450111,-480.0,0.00019025,2]
[365046019,1749425450119,-878.95,0.00019025,2]
[365046020,1749425450130,-480.0,0.00019025,2]
[365046021,1749425450139,-480.0,0.00019025,2]
[365046022,1749425450149,-1299.39,0.00019025,2]
[365046023,1749425450158,-480.0,0.00019025,2]
[365046024,1749425450168,-480.0,0.00019025,2]
[365046025,1749425450178,-513.92813584,0.00019025,2]
[365046026,1749425450187,-480.0,0.00019025,2]
[365046027,1749425450196,-480.0,0.00019026,2]
[365046028,1749425450206,-1194.38,0.00019026,2]
[365046029,1749425450215,-604.14,0.00019026,2]
[365046030,1749425450225,-693.04,0.00019026,2]
[365046031,1749425450235,-808.23,0.00019026,2]
[365046032,1749425450244,-480.0,0.00019026,2]
[365046033,1749425450253,-480.0,0.00019026,2]
[365046034,1749425450263,-480.0,0.00019026,2]
[365046035,1749425450272,-480.0,0.00019026,2]
[365046036,1749425450282,-480.0,0.00019026,2]
[365046037,1749425450291,-480.0,0.00019026,2]
[365046038,1749425450301,-480.0,0.00019026,2]
[365046039,1749425450310,-480.0,0.00019026,2]
[365046040,1749425450319,-480.0,0.00019026,2]
[365046041,1749425450329,-480.0,0.00019026,2]
[365046042,1749425450338,-480.0,0.00019026,2]
[365046043,1749425450348,-480.0,0.00019026,2]
[365046044,1749425450358,-150.0,0.00019026,2]
[365046045,1749425450367,-150.0,0.00019026,2]
[365046046,1749425450378,-250.0,0.00019029,2]
[365046047,1749425450387,-150.0,0.00019029,2]
[365046048,1749425450397,-2824.29885017,0.00019031,2]
[365046049,1749425450407,-150.0,0.00019031,2]
[365046050,1749425450416,-4976.64483379,0.00019038,2]
[365046051,1749425450425,-150.0,0.00019041,2]
[365046052,1749425450435,-150.0,0.00019041,2]
[365046053,1749425450444,-150.0,0.00019042,2]
[365046054,1749425450453,-150.0,0.00019045,2]
[365046055,1749425450462,-150.0,0.00019047,2]
[365046056,1749425450472,-150.0,0.0001905,2]
[365046057,1749425450481,-150.0,0.00019053,2]
[365046058,1749425450491,-150.0,0.00019053,2]
[365046059,1749425450500,-150.0,0.00019056,2]
[365046060,1749425450510,-150.0,0.00019065,2]
[365046061,1749425450519,-150.0,0.00019066,2]
[365046062,1749425450529,-150.0,0.00019066,2]
[365046063,1749425450539,-150.0,0.0001907,2]
[365046064,1749425450548,-150.0,0.0001907,2]
[365046065,1749425450557,-150.0,0.00019071,2]
[365046066,1749425450567,-500.0,0.00019073,2]
[365046067,1749425450576,-500.0,0.00019073,2]
[365046068,1749425450585,-500.0,0.00019073,2]
[365046069,1749425450595,-508.02413988,0.00019073,2]
[365046070,1749425450605,-500.0,0.00019073,2]
[365046071,1749425450614,-150.0,0.00019074,2]
[365046072,1749425450623,-150.0,0.00019078,2]
[365046073,1749425450632,-459.0,0.00019079,2]
[365046074,1749425450641,-150.0,0.00019079,2]
[365046075,1749425450650,-150.0,0.00019079,2]
[365046076,1749425450660,-150.0,0.00019082,2]
[365046077,1749425450669,-150.0,0.00019083,2]
[365046078,1749425450678,-150.0,0.00019085,2]
[365046079,1749425450690,-150.0,0.0001909,2]
[365046080,1749425450703,-480.0,0.00019099,2]
[365046081,1749425450712,-480.0,0.00019099,2]
[365046082,1749425450721,-480.0,0.00019099,2]
[365046083,1749425450731,-480.0,0.00019099,2]
[365046084,1749425450739,-480.0,0.00019099,2]
[365046085,1749425450749,-480.0,0.00019099,2]
[365046086,1749425450758,-480.0,0.00019099,2]
[365046087,1749425450769,-517.38742891,0.00019099,2]
[365046088,1749425450780,-160509.18914819,0.000191,2]
[365046089,1749425450788,-1435.41,0.000191,2]
[365046090,1749425450798,-150.0,0.00019101,2]
[365046091,1749425450807,-150.0,0.00019101,2]
[365046092,1749425450816,-150.0,0.00019103,2]
[365046093,1749425450825,-150.0,0.00019105,2]
[365046094,1749425450835,-4976.64483379,0.00019107,2]
[365046095,1749425450845,-150.0,0.00019114,2]
[365046096,1749425450856,-150.0,0.00019115,2]
[365046097,1749425450865,-150.0,0.00019115,2]
[365046098,1749425450874,-150.0,0.00019118,2]
[365046099,1749425450883,-150.0,0.00019119,2]
[365046100,1749425450893,-152.0,0.00019121,3]
[365046101,1749425450904,-1000.0,0.0001913,2]
[365046102,1749425450914,-150.0,0.00019134,2]
[365046103,1749425450924,-150.0,0.00019135,2]
[365046104,1749425450935,-150.0,0.00019137,2]
[365046105,1749425450945,-150.0,0.00019137,2]
[365046106,1749425450955,-217.50445255,0.00019139,2]
[365046107,1749425450965,-150.0,0.00019141,2]
[365046108,1749425450976,-150.0,0.00019144,2]
[365046109,1749425450987,-150.0,0.00019145,2]
[365046110,1749425450997,-150.0,0.00019145,2]
[365046111,1749425451007,-500.0,0.0001915,2]
[365046112,1749425451016,-10888.4164698,0.00019151,2]
[365046113,1749425451026,-150.0,0.00019154,2]
[365046114,1749425451035,-150.0,0.00019155,2]
[365046115,1749425451045,-150.0,0.00019156,2]
[365046116,1749425451055,-150.0,0.00019159,2]
[365046117,1749425451064,-6899.78110267,0.0001916,2]
[365046118,1749425451074,-213.0,0.0001916,2]
[365046119,1749425451084,-150.0,0.00019173,2]
[365046120,1749425451094,-150.0,0.00019174,2]
[365046121,1749425451103,-2824.29885017,0.00019176,2]
[365046122,1749425451112,-4976.64483379,0.00019176,2]
[365046123,1749425451122,-2183.52383528,0.00019178,2]
[365046124,1749425451132,-500.0,0.00019178,2]
[365046125,1749425451142,-415.71991719,0.00019178,2]
[365046126,1749425451151,-500.0,0.00019178,2]
[365046127,1749425451161,-500.0,0.00019178,2]
[365046128,1749425451171,-500.0,0.00019178,2]
[365046129,1749425451180,-500.0,0.00019178,2]
[365046130,1749425451190,-500.0,0.00019178,2]
[365046131,1749425451200,-500.0,0.00019178,2]
[365046132,1749425451208,-500.0,0.00019178,2]
[365046133,1749425451218,-500.0,0.00019178,2]
[365046134,1749425451227,-500.0,0.00019178,2]
[365046135,1749425451237,-500.0,0.00019178,2]
[365046136,1749425451246,-500.0,0.00019178,2]
[365046137,1749425451256,-500.0,0.00019178,2]
[365046138,1749425451265,-500.0,0.00019178,2]
[365046139,1749425451274,-500.0,0.00019178,2]
[365046140,1749425451284,-500.0,0.00019178,2]
[365046141,1749425451293,-446.55770812,0.00019178,2]
[365046142,1749425451303,-500.0,0.00019178,2]
[365046143,1749425451313,-500.0,0.00019178,2]
[365046144,1749425451322,-500.0,0.00019178,3]
[365046145,1749425451332,-151.0,0.00019178,2]
[365046146,1749425451341,-248.37,0.00019178,2]
[365046147,1749425451350,-289.02497993,0.00019178,2]
[365046148,1749425451360,-480.0,0.00019179,2]
[365046149,1749425451369,-727.51,0.00019179,2]
[365046150,1749425451380,-663.6,0.00019179,2]
[365046151,1749425451390,-306.10206062,0.0001918,2]
[365046152,1749425451400,-480.0,0.00019188,2]
[365046153,1749425451409,-480.0,0.00019188,2]
[365046154,1749425451418,-480.0,0.00019189,2]
[365046155,1749425451427,-480.0,0.00019189,2]
[365046156,1749425451437,-480.0,0.00019189,2]
[365046157,1749425451446,-607.4663985,0.00019189,2]
[365046158,1749425451456,-480.0,0.00019189,2]
[365046159,1749425451465,-480.0,0.00019189,2]
[365046160,1749425451475,-480.0,0.00019189,2]
[365046161,1749425451484,-480.0,0.00019189,2]
[365046162,1749425451494,-313.71582475,0.00019189,2]
[365046163,1749425451503,-497.15958961,0.00019189,2]
[365046164,1749425451513,-309.95241035,0.00019189,2]
[365046165,1749425451523,-480.0,0.00019189,2]
[365046166,1749425451533,-300.0,0.00019189,2]
[365046167,1749425451543,-480.0,0.00019189,2]
[365046168,1749425451552,-480.0,0.00019189,2]
[365046169,1749425451562,-480.0,0.00019189,2]
[365046170,1749425451571,-314.79492911,0.00019189,2]
[365046171,1749425451580,-480.0,0.00019189,2]
[365046172,1749425451590,-480.0,0.00019189,2]
[365046173,1749425451599,-300.0,0.00019189,2]
[365046174,1749425451609,-480.0,0.00019189,2]
[365046175,1749425451618,-480.0,0.00019189,2]
[365046176,1749425451628,-598.52,0.00019189,2]
[365046177,1749425451637,-480.0,0.00019189,2]
[365046178,1749425451647,-480.0,0.00019189,2]
[365046179,1749425451657,-480.0,0.00019189,2]
[365046180,1749425451666,-480.0,0.00019189,2]
[365046181,1749425451675,-480.0,0.00019189,2]
[365046182,1749425451684,-480.0,0.00019189,2]
[365046183,1749425451698,-480.0,0.00019189,2]
[365046184,1749425451708,-480.0,0.00019189,2]
[365046185,1749425451718,-480.0,0.00019189,2]
[365046186,1749425451727,-480.0,0.00019189,2]
[365046187,1749425451738,-480.0,0.00019189,2]
[365046188,1749425451747,-480.0,0.00019189,2]
[365046189,1749425451756,-180.0,0.00019189,2]
[365046190,1749425451767,-823.4,0.00019189,2]
[365046191,1749425451777,-480.0,0.00019189,2]
[365046192,1749425451786,-480.0,0.00019189,2]
[365046193,1749425451796,-480.0,0.00019189,2]
[365046194,1749425451805,-480.0,0.00019189,2]
[365046195,1749425451815,-912.18,0.00019189,2]
[365046196,1749425451825,-480.0,0.00019189,2]
[365046197,1749425451834,-480.0,0.00019189,2]
[365046198,1749425451844,-772.25,0.00019189,2]
[365046199,1749425451853,-480.0,0.00019189,2]
[365046200,1749425451863,-480.0,0.00019189,2]
[365046201,1749425451872,-240.95575624,0.00019189,2]
[365046202,1749425451884,-549.28,0.00019189,2]
[365046203,1749425451894,-480.0,0.00019189,2]
[365046204,1749425451903,-480.0,0.00019189,2]
[365046205,1749425451913,-480.0,0.00019189,2]
[365046206,1749425451922,-480.0,0.00019189,2]
[365046207,1749425451932,-480.0,0.00019189,2]
[365046208,1749425451942,-480.0,0.00019189,2]
[365046209,1749425451951,-480.0,0.00019189,2]
[365046210,1749425451961,-811.78,0.00019189,2]
[365046211,1749425451970,-1522.77,0.00019189,2]
[365046212,1749425451980,-633.17,0.00019189,2]
[365046213,1749425451990,-480.0,0.00019189,2]
[365046214,1749425452000,-595.66,0.00019189,2]
[365046215,1749425452010,-480.0,0.00019189,2]
[365046216,1749425452019,-496.53,0.00019189,2]
[365046217,1749425452028,-480.0,0.00019189,2]
[365046218,1749425452038,-480.0,0.00019189,2]
[365046219,1749425452047,-480.0,0.00019189,2]
[365046220,1749425452058,-480.0,0.00019189,2]
[365046221,1749425452067,-480.0,0.00019189,2]
[365046222,1749425452077,-480.0,0.00019189,2]
[365046223,1749425452087,-509.09907735,0.00019189,2]
[365046224,1749425452097,-480.0,0.00019189,2]
[365046225,1749425452106,-480.0,0.00019189,2]
[365046226,1749425452117,-480.0,0.00019189,2]
[365046227,1749425452127,-480.0,0.00019189,2]
[365046228,1749425452137,-480.0,0.00019189,2]
[365046229,1749425452147,-480.0,0.00019189,2]
[365046230,1749425452156,-480.0,0.00019189,2]
[365046231,1749425452167,-278.29723686,0.00019189,2]
[365046232,1749425452177,-480.0,0.00019189,2]
[365046233,1749425452187,-480.0,0.00019189,2]
[365046234,1749425452196,-480.0,0.00019189,2]
[365046235,1749425452206,-480.0,0.00019189,2]
[365046236,1749425452217,-480.0,0.00019189,2]
[365046237,1749425452226,-480.0,0.00019189,2]
[365046238,1749425452236,-722.96,0.00019189,2]
[365046239,1749425452246,-480.0,0.00019189,2]
[365046240,1749425452255,-480.0,0.00019189,2]
[365046241,1749425452265,-273.07688441,0.00019189,2]
[365046242,1749425452275,-480.0,0.00019189,2]
[365046243,1749425452284,-480.0,0.00019189,2]
[365046244,1749425452294,-480.0,0.00019189,2]
[365046245,1749425452303,-480.0,0.00019189,2]
[365046246,1749425452313,-342.20267902,0.00019189,2]
[365046247,1749425452322,-480.0,0.00019189,2]
[365046248,1749425452332,-480.0,0.00019189,2]
[365046249,1749425452341,-480.0,0.00019189,2]
[365046250,1749425452352,-480.0,0.00019189,2]
[365046251,1749425452361,-480.0,0.00019189,2]
[365046252,1749425452371,-480.0,0.00019189,2]
[365046253,1749425452381,-480.0,0.00019189,2]
[365046254,1749425452392,-480.0,0.00019189,2]
[365046255,1749425452401,-480.0,0.00019189,2]
[365046256,1749425452411,-480.0,0.00019189,2]
[365046257,1749425452422,-480.0,0.00019189,2]
[365046258,1749425452432,-256.81545772,0.00019189,2]
[365046259,1749425452442,-480.0,0.00019189,2]
[365046260,1749425452452,-165.84620395,0.00019189,2]
[365046261,1749425452462,-480.0,0.00019189,2]
[365046262,1749425452473,-480.0,0.00019189,2]
[365046263,1749425452482,-249.50166965,0.00019189,2]
[365046264,1749425452492,-270.99877376,0.00019189,2]
[365046265,1749425452501,-480.0,0.00019189,2]
[365046266,1749425452511,-677.07,0.00019189,2]
[365046267,1749425452521,-480.0,0.00019189,2]
[365046268,1749425452531,-480.0,0.00019189,2]
[365046269,1749425452541,-480.0,0.00019189,2]
[365046270,1749425452551,-480.0,0.00019189,2]
[365046271,1749425452561,-480.0,0.00019189,2]
[365046272,1749425452571,-480.0,0.00019189,2]
[365046273,1749425452582,-480.0,0.00019189,2]
[365046274,1749425452592,-480.0,0.00019189,2]
[365046275,1749425452603,-480.0,0.00019189,2]
[365046276,1749425452613,-480.0,0.00019189,2]